Cogmind - Beta 16 @@@ ROGUE MODE // 2025.11.02 @ 21:23:48 Player: GiggleBox Result: Destroyed by G-67 Veteran with Field Laser Performance ------------- Evolutions (6) 3000 Regions Visited (8) 1600 Robots Destroyed (109) 545 Value Destroyed (2864) 2864 Prototype IDs (25) 500 Alien Tech Used (0) 0 Bonus (923) 923 TOTAL SCORE: 9432 Bonus ------- Follower Combat Kills 623 Registered with UFD 300 Cogmind --------- Core Integrity 0/1150 Matter 300/300 Energy 100/100 System Corruption 9% Temperature Cool (12) Movement Core (50) Location -4/Factory Parts ------- > --- POWER (2) -------- (None) > --- PROPULSION (6) --- (None) > --- UTILITY (9) ------ Improved Signal Interpreter > --- WEAPON (2) ------- (None) > --- INVENTORY (5) ---- High-capacity Matter Pod (200) Long-range Sensor Array Microactuators Power Bank Battle Rifle Peak State ------------ > --- POWER ------------ Light Antimatter Reactor Light Antimatter Reactor > --- PROPULSION ------- Light Treads Medium Treads Medium Treads Heavy Treads Carbon-fiber Leg > --- UTILITY ---------- Large Storage Unit Long-range Sensor Array Improved Signal Interpreter Advanced Terrain Scan Processor Melee Analysis Suite Improved Melee Analysis Suite Force Booster Improved Transmission Jammer Improved Medium Armor Plating > --- WEAPON ----------- Companion Sword > --- INVENTORY -------- Light Antimatter Reactor High-capacity Matter Pod Microactuators Improved Medium Armor Plating EM Shield Force Field Improved Hacking Suite System Shield A0-MCA's Component Scanner Drone Bay Power Bank Heavy Plasma Cannon Battle Rifle Improved Plasma Cutter [Rating: 87] Favorites ----------- Power Ion Engine Engine Ion Engine Power Core Light Fission Core Reactor Light Antimatter Reactor Propulsion Light Treads Treads Light Treads Leg Carbon-fiber Leg Wheel Compact Wheel Hover Unit Gravmag System Utility Large Storage Unit Device Advanced Sensor Array Storage Large Storage Unit Processor Melee Analysis Suite Hackware System Shield Protection Improved Medium Armor Plating Weapon Companion Sword Energy Gun Medium Laser Energy Cannon Heavy Ion Cannon Ballistic Gun Assault Rifle Ballistic Cannon Battle Cannon Launcher Grenade Launcher Special Weapon Improved Plasma Cutter Slashing Weapon Companion Sword Build | -11 -10 -10 -10 -9 -6 -5 -5 -4 ------- Run | Yrd Mat Min Sub Scr Fac Fac Ext Fac Slots Evolved 12 | . . . . . 8 2 . 2 Power 1 | . . . . . 1 . . . Propulsion 4 | . . . . . 3 1 . . Utility 7 | . . . . . 4 1 . 2 Weapon . | . . . . . . . . . Parts Attached 92 | 7 6 6 2 8 28 13 6 16 Power 14 | 1 1 1 . 2 5 1 . 3 Engine 8 | 1 1 1 . 2 2 1 . . Core 4 | . . . . . 3 . . 1 Reactor 2 | . . . . . . . . 2 Propulsion 31 | 2 . 1 1 1 13 8 3 2 Treads 12 | 2 . 1 1 1 3 1 1 2 Leg 12 | . . . . . 8 2 2 . Wheel 5 | . . . . . . 5 . . Hover 2 | . . . . . 2 . . . Flight . | . . . . . . . . . Utility 36 | 2 3 1 . 3 10 4 2 11 Device 15 | 1 2 . . . 5 3 1 3 Storage 4 | 1 1 . . 1 . . . 1 Processor 8 | . . . . . 4 . . 4 Hackware 1 | . . . . . . . . 1 Protection 8 | . . 1 . 2 1 1 1 2 Artifact . | . . . . . . . . . Weapon 11 | 2 2 3 1 2 . . 1 . Energy Gun 2 | . 1 1 . . . . . . Energy Cannon 1 | . . . . 1 . . . . Ballistic Gun 3 | 2 1 . . . . . . . Ballistic Cannon 1 | . . . 1 . . . . . Launcher 2 | . . 2 . . . . . . Special Weapon 1 | . . . . . . . 1 . Impact Weapon . | . . . . . . . . . Slashing Weapon 1 | . . . . 1 . . . . Piercing Weapon . | . . . . . . . . . Special Melee Weapon . | . . . . . . . . . Unidentified Prototypes 1 | . . . . 1 . . . . Parts Lost 54 | . 2 2 3 . 18 6 6 17 Power 8 | . . . 1 . 4 . 1 2 Propulsion 24 | . . 1 . . 9 5 4 5 Utility 17 | . 1 . . . 5 1 1 9 Weapon 5 | . 1 1 2 . . . . 1 Highest Loss Streak 16 | . 1 1 1 . 9 3 4 16 To Critical Strikes 1 | . . . . . 1 . . . Average Backups 12 | 1 6 13 13 13 12 14 14 13 Power 1 | . 1 2 2 1 . 1 . . Propulsion 1 | . 1 2 3 2 . . . . Utility 6 | . 1 2 3 6 7 10 10 10 Weapon 2 | . 1 4 4 2 2 2 2 1 Tool/Special . | . . . . . . . . . Unused Backups 13 | . . . 1 4 . 1 . 7 Power 3 | . . . . 2 . . . 1 Propulsion 1 | . . . . . . 1 . . Utility 5 | . . . . 1 . . . 4 Weapon 3 | . . . 1 . . . . 2 Tool/Special 1 | . . . . 1 . . . . Average Slot Usage (%) 87 | . 99 100 98 95 80 70 71 77 Engine 9 | . 14 14 14 14 9 2 1 . Core 1 | . . . . . . 5 5 3 Treads 20 | . 28 28 28 28 19 . 7 14 Leg 4 | . . . . . 5 14 14 4 Device 7 | . 13 12 . . 11 12 11 11 Storage 9 | . 14 14 14 14 6 5 5 4 Processor 6 | . . . . . 11 11 11 20 Protection 7 | . . 2 14 14 6 2 5 4 Energy Gun 2 | . 12 17 . . . . . . Energy Cannon 2 | . . . . 9 . . . . Ballistic Gun 1 | . 15 1 . . . . . . Ballistic Cannon 4 | . . . 7 12 . . . . Launcher 2 | . . 9 19 . . . . . Slashing Weapon 2 | . . . . . 6 5 5 4 Peak Build Rating 87 | 7 8 10 12 24 63 70 70 87 Average Rating 34 | 5 7 9 10 19 50 54 64 73 On Entrance 25 | . 7 8 9 11 22 49 70 55 Avg Prop Armor Cover (%) 6 | . . . . . 5 10 8 3 Naked Turns . | . . . . . . . . . Heaviest Build 64 | 14 30 36 36 51 57 53 53 64 Greatest Support 146 | 40 40 40 40 40 80 68 90 146 Greatest Overweight (x) 10 | . . . . 1 10 4 1 7 Average Overweight (x) . | . . . . . . . . . Largest Inventory Capacity 15 | 8 15 15 15 15 15 15 15 15 Average Capacity 14 | 7 14 15 15 15 15 15 15 14 Most Carried 15 | 2 10 14 15 15 15 15 15 15 Average Carried 13 | 1 6 13 14 14 12 14 14 13 Final Capacity 15 | 8 15 15 15 15 15 15 15 5 Final Carried 15 | 2 10 14 15 15 13 15 15 5 Scrap Suit Usage (%) 1 | . . . . . . 1 9 . Parts Cannibalized 7 | . . . . . . 1 6 . Class Distribution -------------------- 76% | Mutant 22% | Scavenger-Mutant Dominant Class ---------------- Mutant | -10/Materials Scavenger-Mutant | -10/Mines Mutant | -10/Subcaves Mutant | -9/Scraptown Mutant | -6/Factory Scavenger-Mutant | -5/Factory Scavenger-Mutant | -5/Extension Scavenger-Mutant | -4/Factory Resources | -11 -10 -10 -10 -9 -6 -5 -5 -4 ----------- Run | Yrd Mat Min Sub Scr Fac Fac Ext Fac Matter Collected 3085 | 325 303 85 185 274 333 1171 173 236 Remotely . | . . . . . . . . . Salvage Created 4873 | 147 568 112 83 . 1198 1081 941 743 Parts 264 | 15 37 14 9 . 71 49 26 43 Haulers Intercepted 2 | . 1 . . . . . . 1 Recyclers Shooed 5 | . . . . . 2 2 1 . Parts Field Recycled . | . . . . . . . . . Retrieved Matter . | . . . . . . . . . Parts Self-Destructed 4 | . . . 4 . . . . . Prevented . | . . . . . . . . . Parts Restored . | . . . . . . . . . Kills | -11 -10 -10 -10 -9 -6 -5 -5 -4 ------- Run | Yrd Mat Min Sub Scr Fac Fac Ext Fac Combat Hostiles Destroyed 61 | . 15 9 7 . 13 8 3 6 Melee 30 | . . . . . 13 8 3 6 Guns 21 | . 15 6 . . . . . . Cannons 3 | . . . 3 . . . . . AOE 7 | . . 3 4 . . . . . Classes Destroyed 16 | 3 4 . 1 . 5 1 1 1 Worker 11 | 1 . . . . 3 5 . 2 Builder 4 | . . . . . 1 . . 3 Tunneler 7 | 4 . 1 . . . 2 . . Hauler 2 | . 1 . . . . . . 1 Recycler 14 | 1 . . . . 3 4 5 1 Mechanic 1 | . . . . . . 1 . . Operator 3 | . . . . . 1 2 . . Watcher 6 | . 3 . . . 2 . 1 . Swarmer 22 | . 6 9 3 . . 4 . . Grunt 17 | . 9 . . . 6 1 1 . Duelist 1 | . . . . . 1 . . . Sentry 4 | . . . . . . . 2 2 Specialist 2 | . . . . . . . . 2 Hunter 2 | . . . . . 2 . . . Programmer 9 | . . . . . 4 3 . 2 Subdweller 4 | . . . 4 . . . . . Best Kill Streak 4 | 2 3 4 3 . 3 3 2 4 Combat Bots Only 3 | . 3 3 3 . 3 2 1 2 Max Kills in Single Turn 4 | 1 1 4 3 . 1 1 1 1 Gunslinging 1 | . . 1 . . . . . . Exploded 3 | . . 3 3 . . . . . Melee 1 | . . . . . 1 1 1 1 Uniques/NPCs Destroyed . | . . . . . . . . . Combat | -11 -10 -10 -10 -9 -6 -5 -5 -4 -------- Run | Yrd Mat Min Sub Scr Fac Fac Ext Fac Hostile Shots Fired 624 | . 78 46 28 . 203 70 62 137 Missed 144 | . 28 13 7 . 42 15 15 24 Hits 480 | . 50 33 21 . 161 55 47 113 Melee 7 | . . . . . 7 . . . Projectile 473 | . 50 33 21 . 154 55 47 113 AOE 2 | . . . . . . 2 . . Critical Strikes 23 | . 1 . 1 . 7 2 4 8 Actively Blocked 1 | . . . . . 1 . . . Part Disruptions 6 | . . . . . . . . 6 Damage Taken 9460 | . 494 272 530 . 3051 1040 1220 2853 Core 2301 | . 71 30 67 . 738 153 77 1165 Absorbed by Shields 71 | . . . . . . 20 46 5 Redirected to Shielding 34 | . . . . . 34 . . . Ignored by Resistances 176 | . . . . . . . . 176 Regen/Repaired (Parts) 56 | . . . . . . 8 48 . Core Remaining (%) 55 | 100 . . . 32 13 . 77 . Volleys Fired 133 | 14 73 18 28 . . . . . Largest 2 | 2 2 2 2 . . . . . Hottest 106 | 40 70 106 60 . . . . . Shots Fired 239 | 28 146 35 30 . . . . . Gun 208 | 28 146 34 . . . . . . Cannon 24 | . . . 24 . . . . . Launcher 7 | . . 1 6 . . . . . Special . | . . . . . . . . . Kinetic 137 | 28 76 9 24 . . . . . Thermal 95 | . 70 25 . . . . . . Explosive 7 | . . 1 6 . . . . . Electromagnetic . | . . . . . . . . . Robot Hit Streak 16 | 3 8 5 16 . . . . . Robot Miss Streak 3 | 2 3 3 1 . . . . . Penetration Max . | . . . . . . . . . Secondary Targets 2 | . 1 1 . . . . . . Max Gunslinging Chain 1 | . 1 1 . . . . . . Shots Hit Robots 330 | 15 93 20 22 . 67 49 23 41 Core Hits 143 | 9 33 13 12 . 28 20 12 16 Critical Kills . | . . . . . . . . . Critical Parts Destroyed . | . . . . . . . . . Critical Strikes 9 | . 3 . 2 . 2 2 . . Burn 3 | . 3 . . . . . . . Blast 2 | . . . 2 . . . . . Melee Attacks 263 | . . . . . 106 68 33 56 Impact . | . . . . . . . . . Slashing 263 | . . . . . 106 68 33 56 Piercing . | . . . . . . . . . Sneak Attacks 40 | . . . . . 8 18 8 6 Combat Hostiles . | . . . . . . . . . Follow-up Attacks 2 | . . . . . 2 . . . Damage Inflicted 11039 | 156 1150 433 757 . 2849 2680 1156 1858 Guns 1556 | 156 1150 250 . . . . . . Cannons 404 | . . . 404 . . . . . Explosions 493 | . . 140 353 . . . . . Melee 8510 | . . . . . 2849 2680 1156 1825 Ramming 76 | . . 43 . . . . . 33 Kinetic 1223 | 156 586 77 404 . . . . . Thermal 737 | . 564 173 . . . . . . Explosive 493 | . . 140 353 . . . . . Electromagnetic . | . . . . . . . . . Impact . | . . . . . . . . . Slashing 8510 | . . . . . 2849 2680 1156 1825 Piercing . | . . . . . . . . . Highest Corruption 9 | . . . . . 2 4 4 9 Average Corruption 2 | . . . . . 1 3 4 6 Corruption Purged . | . . . . . . . . . Corruption Blocked . | . . . . . . . . . Effects 69 | . . . . . 11 22 28 8 Message Errors 22 | . . . . . 3 6 9 4 Matter Fused 19 | . . . . . 3 5 8 3 Heat Flow Errors 3 | . . . . . 2 . 1 . Energy Discharges 8 | . . . . . 2 5 . 1 Parts Rejected 1 | . . . . . . . 1 . Parts Fused 1 | . . . . . . . 1 . Data Loss (minor) 10 | . . . . . . 6 4 . Data Loss (major) 2 | . . . . . . . 2 . Alerts 3 | . . . . . 1 . 2 . Overload Shots . | . . . . . . . . . Overflow Damage 949 | . . . 5 . 184 447 129 184 Projectiles 5 | . . . 5 . . . . . Explosions . | . . . . . . . . . Melee 944 | . . . . . 184 447 129 184 Knockbacks 4 | . . . 4 . . . . . Impact . | . . . . . . . . . Kinetic 4 | . . . 4 . . . . . Secondary . | . . . . . . . . . Self-Inflicted Damage 117 | . . 16 85 . . . . 16 Shots 4 | . . 1 3 . . . . . Rammed 16 | . . 10 . . . . . 6 Targets Rammed 16 | . . 10 . . . . . 6 Kicked . | . . . . . . . . . Crushed . | . . . . . . . . . Highest Temperature 310 | . 111 72 . . 266 . 310 . Average Temperature 44 | . 24 37 . . 112 . 139 . Received Heat Transfer 1892 | . 177 . 120 . 684 50 629 232 Effects 1 | . . . . . 1 . . . Interference 1 | . . . . . 1 . . . Siege Activations . | . . . . . . . . . Martial Activations . | . . . . . . . . . Shielding Activations . | . . . . . . . . . Robots Disrupted 2 | . . . . . . 2 . . Combat Hostiles . | . . . . . . . . . Robots Corrupted . | . . . . . . . . . Combat Hostiles . | . . . . . . . . . Parts Fried . | . . . . . . . . . Impact Corruptions . | . . . . . . . . . Robots Melted . | . . . . . . . . . Combat Hostiles . | . . . . . . . . . Parts Melted 4 | . 3 . . . . 1 . . Heat Transferred 2368 | . 1887 481 . . . . . . Parts Sabotaged . | . . . . . . . . . Parts Stolen . | . . . . . . . . . Parts Stripped . | . . . . . . . . . Power Chain Reactions . | . . . . . . . . . Alert | -11 -10 -10 -10 -9 -6 -5 -5 -4 ------- Run | Yrd Mat Min Sub Scr Fac Fac Ext Fac Maximum Alert Level . | . . . . . . . . . Low Security (%) 100 | 100 100 100 . . 100 100 100 100 Level 1 . | . . . . . . . . . Level 2 . | . . . . . . . . . Level 3 . | . . . . . . . . . Level 4 . | . . . . . . . . . Level 5 . | . . . . . . . . . High Security . | . . . . . . . . . Max Security . | . . . . . . . . . Peak Influence 194 | 5 115 85 . . 80 194 117 38 Initial 74 | . . 12 . . . 35 74 . Average 31 | 2 49 21 . . 17 65 42 4 Influence Increases 2532 | 30 443 238 70 . 544 548 432 227 Destroy 0b10 Robot/C 1420 | . 300 180 60 . 260 260 240 120 Destroy 0b10 Robot/NC 255 | 30 20 5 . . 50 75 40 35 Destroy Leader 290 | . 68 30 10 . 74 42 24 42 Allied During Kill 103 | . . . . . . 60 43 . Successful Hack 63 | . 8 . . . 28 . 19 8 Disable Machine 120 | . . 15 . . 60 15 30 . Destroy Structure 86 | . 2 8 . . 12 36 6 22 Lose Combat Pursuer 195 | . 45 . . . 60 60 30 . Influence Decreases 2523 | 30 412 269 70 . 472 468 584 218 Entered New Map 134 | . . 19 . . . 37 78 . Time Decay 1884 | 30 392 240 70 . 324 301 396 131 Lost Part 345 | . 20 10 . . 148 30 50 87 Lost Ally 160 | . . . . . . 100 60 . Squads Dispatched 20 | . 2 . . . 6 6 1 5 Investigation 1 | . . . . . . . 1 . Extermination 10 | . . . . . 4 3 . 3 Reinforcement 9 | . 2 . . . 2 3 . 2 Assault . | . . . . . . . . . Garrison . | . . . . . . . . . Intercept . | . . . . . . . . . Searches Triggered . | . . . . . . . . . Construction Impeded . | . . . . . . . . . Haulers Reinforced 1 | . . . . . . 1 . . Active Scanning Responses . | . . . . . . . . . Cargo Convoy Interrupts . | . . . . . . . . . Stealth | -11 -10 -10 -10 -9 -6 -5 -5 -4 --------- Run | Yrd Mat Min Sub Scr Fac Fac Ext Fac Distress Signals 7 | . 2 . . . 2 2 1 . Communications Jammed 8 | . . . . . . . . 8 Distress Signals . | . . . . . . . . . Times Spotted 119 | . 25 11 7 . 28 22 16 10 Peak Tracking Total 5 | . 4 3 3 . 5 5 5 4 Tactical Retreats 7 | . 2 . . . 2 1 2 . Traps | -11 -10 -10 -10 -9 -6 -5 -5 -4 ------- Run | Yrd Mat Min Sub Scr Fac Fac Ext Fac Traps Triggered 10 | . 1 . 1 . 1 1 1 5 Indirectly . | . . . . . . . . . Trap Hack Attempts . | . . . . . . . . . Triggered . | . . . . . . . . . Disarmed 3 | . . . . . . . . 3 Reprogrammed . | . . . . . . . . . Reused . | . . . . . . . . . Traps Extracted . | . . . . . . . . . Installed 1 | . . . 1 . . . . . Triggered . | . . . . . . . . . Machines | -11 -10 -10 -10 -9 -6 -5 -5 -4 ---------- Run | Yrd Mat Min Sub Scr Fac Fac Ext Fac Machines Disabled 10 | . . 1 1 . 4 1 3 . Max in Single Turn 1 | . . 1 1 . 1 1 1 . Garrison Access 1 | . . . . . 1 . . . Machines Repaired . | . . . . . . . . . Machines Dismantled 1 | . . . . . . . 1 . Machines Sabotaged . | . . . . . . . . . Overloaded Fab Kills . | . . . . . . . . . Hacking | -11 -10 -10 -10 -9 -6 -5 -5 -4 --------- Run | Yrd Mat Min Sub Scr Fac Fac Ext Fac Machines Accessed 34 | . 6 1 1 3 12 3 5 3 Terminals 22 | . 6 1 . . 6 2 5 2 Fabricators 3 | . . . . . 1 1 . 1 Repair Stations . | . . . . . . . . . Recycling Units 1 | . . . . . 1 . . . Scanalyzers 2 | . . . . . 2 . . . Garrison Access 2 | . . . . . 2 . . . Total Hacks 94 | . 17 2 9 14 23 5 16 8 Successful 48 | . 8 2 9 14 5 1 4 5 Failed 46 | . 9 . . . 18 4 12 3 Catastrophic 6 | . 1 . . . 3 2 . . Database Lockouts . | . . . . . . . . . Manual 38 | . 10 1 . . 13 4 4 6 Terminals 55 | . 17 2 . . 11 2 16 7 Fabricators 6 | . . . . . 2 3 . 1 Repair Stations . | . . . . . . . . . Recycling Units 2 | . . . . . 2 . . . Scanalyzers 3 | . . . . . 3 . . . Garrison Access 5 | . . . . . 5 . . . Terminal Hacks 34 | . 4 2 9 14 . . 3 2 Record 21 | . . . 8 13 . . . . Part Schematic 1 | . . . . . . . . 1 Robot Analysis 1 | . . 1 . . . . . . Prototype ID Bank 3 | . 3 . . . . . . . Open Door 3 | . . . . 1 . . 2 . Locate Traps 2 | . 1 . . . . . 1 . Disarm Traps 1 | . . . . . . . . 1 Dispatch Records 1 | . . 1 . . . . . . Proto ID Catalog 1 | . . . 1 . . . . . Fabricator Hacks 2 | . . . . . . 1 . 1 Network Status 1 | . . . . . . 1 . . Load Schematic 1 | . . . . . . . . 1 Repair Station Hacks . | . . . . . . . . . Recycling Unit Hacks . | . . . . . . . . . Scanalyzer 1 | . . . . . 1 . . . Retrieve Study 1 | . . . . . 1 . . . Garrison Access Hacks 1 | . . . . . 1 . . . Seal Access 1 | . . . . . 1 . . . Unauthorized Hacks 10 | . 4 . . . 3 . 1 2 Terminals 10 | . 4 . . . 3 . 1 2 Assimilate 1 | . . . . . 1 . . . Botnet 4 | . 2 . . . 1 . . 1 Skim 4 | . 2 . . . 1 . . 1 Sabotage 1 | . . . . . . . 1 . Fabricators . | . . . . . . . . . Repair Stations . | . . . . . . . . . Recycling Units . | . . . . . . . . . Scanalyzers . | . . . . . . . . . Garrison Access . | . . . . . . . . . Data Cores Recovered . | . . . . . . . . . Used . | . . . . . . . . . Hacking Detections 23 | . 6 1 . . 10 3 2 1 Full Trace Events . | . . . . . . . . . Feedback Events . | . . . . . . . . . Feedback Blocked . | . . . . . . . . . Robot Schematics Acquired . | . . . . . . . . . Robots Built . | . . . . . . . . . Authchips . | . . . . . . . . . Time . | . . . . . . . . . Total Robot Build Rating . | . . . . . . . . . Part Schematics Acquired 1 | . . . . . . . . 1 Parts Built . | . . . . . . . . . Authchips . | . . . . . . . . . Time . | . . . . . . . . . Total Part Build Rating . | . . . . . . . . . Part Studies Acquired 1 | . . . . . 1 . . . Parts Repaired . | . . . . . . . . . Time . | . . . . . . . . . Parts Recycled . | . . . . . . . . . Recycled Matter . | . . . . . . . . . Retrieved Matter . | . . . . . . . . . Retrieved Components . | . . . . . . . . . Parts Scanalyzed . | . . . . . . . . . Part Schematics Acquired . | . . . . . . . . . Parts Damaged . | . . . . . . . . . Bothacking | -11 -10 -10 -10 -9 -6 -5 -5 -4 ------------ Run | Yrd Mat Min Sub Scr Fac Fac Ext Fac Used RIF Installer . | . . . . . . . . . Robots Hacked . | . . . . . . . . . Non-combat . | . . . . . . . . . Combat . | . . . . . . . . . Robot Hacks Applied . | . . . . . . . . . Relay Couplers Released . | . . . . . . . . . Fabnet Peak Effective % . | . . . . . . . . . Robots Rewired 4 | . . . . . . . 4 . Allies Hacked 2 | . . . . . 1 1 . . Hacks Repelled . | . . . . . . . . . Allies | -11 -10 -10 -10 -9 -6 -5 -5 -4 -------- Run | Yrd Mat Min Sub Scr Fac Fac Ext Fac Total Allies 12 | . . . . . 1 5 6 . Largest Group 6 | . . . . . 1 5 6 . Highest-Rated Group 277 | . . . . . 10 235 277 . Highest-Rated Ally 159 | . . . . . 10 47 159 . Total Orders . | . . . . . . . . . Ally Attacks 95 | . . . . . . 45 50 . Total Damage 2103 | . . . . . . 799 1304 . Kills 20 | . . . . . . 6 14 . Allies Corrupted 1 | . . . . . . 1 . . Allies Melted . | . . . . . . . . . Intel | -11 -10 -10 -10 -9 -6 -5 -5 -4 ------- Run | Yrd Mat Min Sub Scr Fac Fac Ext Fac Active Infowar (turns) 6525 | 16 823 . . . 2130 1472 1060 1024 Sensors 5505 | . . . . . 2130 1472 1060 843 Seismic 839 | 16 823 . . . . . . . Jamming 1099 | . . . . . . . 75 1024 Robot Analysis Total 1 | . . 1 . . . . . . Derelict Logs Recovered 5 | . . 2 1 2 . . . . Drone Launches . | . . . . . . . . . Drone Recoveries . | . . . . . . . . . Exploration | -11 -10 -10 -10 -9 -6 -5 -5 -4 ------------- Run | Yrd Mat Min Sub Scr Fac Fac Ext Fac Turns Passed 13223 | 168 1181 976 1179 3572 2518 1476 1060 1093 Spaces Moved 7193 | 77 585 557 685 1604 1443 1041 643 558 Core 37 | 5 . . . . 6 . . 26 Treads 5457 | 72 585 557 685 1604 1127 . 295 532 Legs 1303 | . . . . . 310 645 348 . Wheels 396 | . . . . . . 396 . . Hover . | . . . . . . . . . Flight . | . . . . . . . . . Fastest Speed 50 | 50 160 160 160 160 120 92 120 50 Average Speed 163 | 152 160 160 160 220 153 115 139 156 Slowest Speed 550 | 160 160 160 160 250 550 260 180 400 Overloaded Moves . | . . . . . . . . . Propulsion Burnouts . | . . . . . . . . . Robots Hopped . | . . . . . . . . . Potential Cave-ins . | . . . . . . . . . Cave-ins Triggered . | . . . . . . . . . Exploration Rate (%) 48 | 6 88 96 38 91 32 21 51 11 Regions Visited 8 Branch Regions 4 Pre-discovered Areas 3 | . . . 1 2 . . . . Known Exits Taken 3 | . . . . . 1 1 1 . Unknown Exits Taken 5 | 1 1 1 1 1 . . . . Scrap Searched 10 | . . 1 3 6 . . . . Spaces Dug 34 | . . . . . 12 10 1 11 Terrain Destroyed 72 | . . 8 30 . 12 10 1 11 Melee 34 | . . . . . 12 10 1 11 Projectile . | . . . . . . . . . AOE 38 | . . 8 30 . . . . . Terrain Rammed . | . . . . . . . . . Walls Destroyed . | . . . . . . . . . Machines Disabled . | . . . . . . . . . Actions | -11 -10 -10 -10 -9 -6 -5 -5 -4 --------- Run | Yrd Mat Min Sub Scr Fac Fac Ext Fac Total 8063 | 99 682 599 739 1641 1628 1220 758 697 Wait 209 | . 5 4 13 8 30 75 29 45 Move 7185 | 76 584 556 684 1603 1442 1040 642 558 Hop . | . . . . . . . . . Pick Up 54 | 2 9 5 5 8 10 9 2 4 Fast Attach 54 | 7 3 . . 2 17 11 4 10 Attach 33 | . 2 2 2 1 10 4 4 8 Detach 8 | . . . . 1 1 1 5 . Swap 32 | . 6 4 2 5 7 4 . 4 Drop 40 | . . . 4 13 7 8 2 6 Fire 133 | 14 73 18 28 . . . . . Melee 258 | . . . . . 104 68 30 56 Ram 6 | . . . . . . . . 6 Kick . | . . . . . . . . . Crush 10 | . . 10 . . . . . . Escape Stasis . | . . . . . . . . . Rewire 32 | . . . . . . . 32 . Trap 1 | . . . 1 . . . . . Miscellaneous 8 | . . . . . . . 8 . Route ------- -11/Scrapyard -10/Materials (discovered 5 exits: [*Mat x3] / *Min x2) -10/Mines (discovered 3 exits: [*Mat x2] / *Sub) -10/Subcaves -9/Scraptown (discovered 2 exits: *Fac x2) -6/Factory (discovered 2 exits: *Fac x2) -5/Factory (discovered 2 exits: *Fac / *Ext) -5/Extension -4/Factory (discovered 1 exit: [*Res]) History --------- Turn | Location | Event 3 | -11/Scrapyard | Discovered new exit (range 15) 169 | -11/Scrapyard | Entered Materials 315 | -10/Materials | Build established: Mutant 416 | -10/Materials | Discovered new exit (range 9) 601 | -10/Materials | Discovered new exit (range 7) 641 | -10/Materials | Discovered new exit (range 13) 1028 | -10/Materials | Discovered new exit (range 14) 1224 | -10/Materials | Discovered new exit (range 9) 1350 | -10/Materials | Entered Mines 1441 | -10/Mines | Joined a pair of Derelicts in attacking an 0b10 outpost 1509 | -10/Mines | Learned Materials stockpile data 1756 | -10/Mines | Build established: Scavenger-Mutant 1773 | -10/Mines | Learned Materials stockpile data 1842 | -10/Mines | A weapon hastily lodged in a ceiling crevice suddenly fell to the ground 1889 | -10/Mines | Discovered new exit (range 6) 1976 | -10/Mines | Discovered new exit (range 6) 2077 | -10/Mines | Discovered new exit (range 8) 2326 | -10/Mines | Entered Subcaves 2327 | -10/Subcaves | Approached by a straggling Scientist 2406 | -10/Subcaves | Shifting Twisted Machinery released Battle Cannon 2409 | -10/Subcaves | Shifting Twisted Machinery released Sub. Beam Cannon 2463 | -10/Subcaves | A swath of the cavern ceiling suddenly collapsed 2493 | -10/Subcaves | Build established: Mutant 2564 | -10/Subcaves | Learned location of Zion (-6) 2882 | -10/Subcaves | Disturbed a concealed Subdweller 2937 | -10/Subcaves | Core integrity fell below 50% 3002 | -10/Subcaves | Visited 4L-MR0's lab 3017 | -10/Subcaves | Found Power Bank 3267 | -10/Subcaves | Shifting Twisted Machinery released Mak. Thermal Plating 3268 | -10/Subcaves | Shifting Twisted Machinery released Sub. Beam Cannon 3505 | -10/Subcaves | Entered Scraptown 3592 | -9/Scraptown | Heard Great Nut preacher, LISTEN AND RECITE! 3633 | -9/Scraptown | Learned location of Extension (-5) 3741 | -9/Scraptown | Discovered new exit (range 11) 3837 | -9/Scraptown | Scanned Subdweller tech in exchange for log data 3841 | -9/Scraptown | Learned Factory terminal intel 3926 | -9/Scraptown | Visited UFD Registry 3926 | -9/Scraptown | Registered with UFD as "Flexiplate" 4054 | -9/Scraptown | Delivered Scrap Shield to a Scientist 4230 | -9/Scraptown | Visited Scrapoid Pod Storage 4239 | -9/Scraptown | Found Scrapoid Pod 4268 | -9/Scraptown | Visited A0-MCA Data Center 4278 | -9/Scraptown | Given an A rating by A0-MCA 4283 | -9/Scraptown | Found A0-MCA's Component Scanner 4314 | -9/Scraptown | Visited Junk Repository 4435 | -9/Scraptown | Visited Scrap Suit Storage 4533 | -9/Scraptown | Visited Sword Containment 4628 | -9/Scraptown | Visited Research Penetration Think Tank 4673 | -9/Scraptown | Visited Science Testing Area 4750 | -9/Scraptown | Visited Infowarlord's Domain 4768 | -9/Scraptown | Found Exp. Signal Interpreter 5062 | -9/Scraptown | Visited Red Mages 5154 | -9/Scraptown | Visited SPCMW 5222 | -9/Scraptown | Visited TADAMA 5282 | -9/Scraptown | Visited Bundlers 6453 | -9/Scraptown | Visited Comm Corps 6643 | -9/Scraptown | Visited IN-MT5's Study 7070 | -9/Scraptown | Discovered new exit (range 3) 7077 | -9/Scraptown | Entered Factory 7077 | -6/Factory | Evolved 8 slots: Power x1, Propulsion x3, Utility x4 7078 | -6/Factory | Loaded intel: 26 terminal locations 7593 | -6/Factory | Discovered new exit (range 14) 7665 | -6/Factory | Identified exit to Factory 8820 | -6/Factory | Discovered exit to Factory (range 16) 9130 | -6/Factory | Lost 9 parts (2p6n1u) 9179 | -6/Factory | Core integrity fell below 50% 9242 | -6/Factory | Core integrity fell below 20% 9250 | -6/Factory | Lost 9 parts (2p3n4u) 9595 | -6/Factory | Entered another Factory area 9595 | -5/Factory | Evolved 2 slots: Propulsion x1, Utility x1 10133 | -5/Factory | Lost 3 parts (2n1u) 10287 | -5/Factory | Scrapoid Pod released 05F05-D (x5) 10339 | -5/Factory | Found Scrap Suit 10429 | -5/Factory | Build established: Scavenger-Mutant 10552 | -5/Factory | Lost 3 allies 10940 | -5/Factory | Discovered new exit (range 15) 10963 | -5/Factory | Identified exit to Factory 11053 | -5/Factory | Discovered new exit (range 16) 11070 | -5/Factory | Identified exit to Extension 11071 | -5/Factory | Entered Extension 11257 | -5/Extension | Rescued A7 11489 | -5/Extension | Rescued a captive Derelict 11519 | -5/Extension | Spotted B-75 Beast 11540 | -5/Extension | Spotted B-75 Beast 11560 | -5/Extension | Allies destroyed B-75 Beast 11567 | -5/Extension | Allies destroyed B-75 Beast 11577 | -5/Extension | Extracted ID and sensor layout for unrecognized location from A7's data core 11607 | -5/Extension | Lost 5 allies 11631 | -5/Extension | Lost 4 parts (1p3n) 11795 | -5/Extension | Discovered exit to Factory (range 3) 12131 | -5/Extension | Entered Factory 12131 | -4/Factory | Evolved 2 slots: Utility x2 12357 | -4/Factory | Build established: Mutant 12898 | -4/Factory | Build established: Scavenger-Mutant 13168 | -4/Factory | Core integrity fell below 50% 13218 | -4/Factory | Core integrity fell below 20% 13219 | -4/Factory | Discovered new exit (range 15) 13224 | -4/Factory | Destroyed by G-67 Veteran with Field Laser Last Messages --------------- 13210_ Slammed into K-01 Serf. 13211_ Destabilizing: Core damaged (-11). 13213_ Triggered Blade Trap. 13213_ Massive razor-sharp blades shoot up from within the floor. 13213_ Melee Analysis Suite severed. 13213_ Triggered Blade Trap. 13213_ Massive razor-sharp blades shoot up from within the floor. 13213_ A0-MCA's Component Scanner severed. 13217_ Adv. Terrain Scan Processor destroyed. 13217_ Critical hit (Blast). 13217_ Knocked back. 13219_ System corrupted: Matter fused (-9). 13219_ EXIT=FOUND 13220_ Slammed into K-01 Serf. 13220_ K-01 Serf destroyed. 13221_ Acquired 9 matter. 13221_ Critical hit (Burn: +50). 13221_ Slammed into G-67 Veteran. 13222_ Penetrated by Slug. 13222_ Slammed into G-67 Veteran. Map ----- +----------------------------------------------------+ | ?????????????????????????????????????????????????? | | ?????????????????????????????????????????????????? | | ???????????????????????????????????????????????? | | #??????????????????????????????????????????????? | | #??????????????????????????????????????????????? | | #??????????????????????????????????????????????? | | +??????????????????????????????????????????????? | | #??????????????????????????????????????????????? | | #??????????????????????????????????????????????? | | #??????????????????????????????????????????????? | | #??????????????????????????????????????????????? | | #??????????????????????????????????????????????? | | +??????????????????????????????????????????????? | | #?????###??????????????????????????????????????? | | ##??? #??????????????????????????????????????? | | % #? !!! #??????????????????????????????????????? | | ! # !! #??????????????????????????????????????? | | + !! #??????????????????????????????????????? | | | # #?????????????????????????????????????? | | %!!#?????????????????????????????????????????????? | | !###?#+#?????????????????????????????????????????? | | *#???# #?????????????????????????????????????????? | | ]#???# #?????????????????????????????????????????? | | [##??# #?????????????????????????????????????????? | | *%#### #######################+###???????????????? | | %=%!%% % =%g@ggu A ????????? | | ##################################???????????????? | | ?????????????????????????????????????????????????? | | ?????????????????????????????????????????????????? | | ?????????????????????????????????????????????????? | | ?????????????????????????????????????????????????? | | | | | | | | | | | | | | | | | | | | | | | | | | | | | | | | | | | | | | | +----------------------------------------------------+ Best States ------------- Heat Dissipation 43 Energy Generation 37 Energy Capacity 380 Matter Stores 300 Matter Capacity 300 Sight Range 16 Robot Scan Range 18 Terrain Scan Density 210 Jamming Range 14 Armor Coverage 225 Resistance: EM 25 Weapon Shielding 33 Melee Speed Boost 20 Evasion (%) 70 Melee Accuracy 11 Recoil Reduction 5 Force Boost 20 Defensive Hacking 10 Item Schematics ----------------- Lrn. Sensor Array | -4/Factory | Hacked Robot Schematics ------------------ None Fabricated ------------ Nothing Repaired ---------- Nothing Studied --------- Lgt. Treads | -6/Factory | Hacked Alien Tech Used ----------------- None Achievements -------------- Mistaken Identity Challenges ------------ None Game ------ Seed SixBattleSlayer Manual? 0 Play Time 01:14:43 Cumulative 218.7 hours Start 2025.11.02 @ 20:09:38 End 2025.11.02 @ 21:23:48 Sessions 1 Manual Loads 0 Difficulty Rogue Special Mode None Game No. 178 Rogue 178 Adventurer 0 Explorer 0 Win Type - Total 5 Types 3/0/0/2/0/0/0/0/0/0 Lore% 76 Gallery% 68 Achievement% 48 Wizard Run 0 Options --------- Layout 0 ASCII 0 Keyboard 1 Movement Numpad Keybinds 0 Fullscreen 1 Font 24/Terminus Map View 76x50 Zoom Use 0% Tactical HUD 1 Map Filters NONE Filters NONE Steam 1 RUN: 4c9cbaef-b2f1-4754-a1c9-daaa0a542f17